bitfinex/quotes_ETHUSD_20250925
["timestamp","ask_amount","ask_price","bid_price","bid_amount"]
[1758843995373,0.001,3875.1,3875.0,1.55]
[1758843995569,0.001,3875.1,3875.0,4.438]
[1758843995570,3.24662984,3875.1,3875.0,4.438]
[1758843995790,2.58064516,3875.0,3874.9,0.1288]
[1758843995991,3.24564516,3875.0,3874.9,0.1288]
[1758843996192,2.5810506,3874.4,3874.2,2.2778]
[1758843996393,2.5810506,3874.4,3874.3,4.78]
[1758843996601,0.2288,3874.4,3874.3,4.78]
[1758843996893,0.665,3874.7,3874.3,4.78]
[1758843997193,2.58098774,3874.5,3874.3,4.78]
[1758843997593,0.665,3874.7,3874.3,4.78]
[1758843997827,2.58069983,3875.0,3874.6,0.1288]
[1758843998033,2.58084496,3874.7,3874.6,0.1288]
[1758843998324,2.58084496,3874.7,3874.6,4.9068]
[1758843998525,2.58079043,3874.8,3874.6,4.9068]
[1758843998823,2.58071265,3874.9,3874.6,4.9068]
[1758843998999,2.58160061,3875.1,3874.6,4.9068]
[1758843999323,2.5807936,3874.8,3874.6,4.9068]
[1758844000025,0.665,3875.0,3874.6,4.9068]
[1758844000199,2.58084496,3874.7,3874.6,4.9068]
[1758844000396,2.58084496,3874.7,3874.6,0.1288]
[1758844000397,3.82850063,3874.7,3874.6,0.1288]
[1758844000628,3.82850063,3874.7,3874.6,4.9068]
[1758844000832,3.82850063,3874.7,3874.6,4.778]
[1758844002940,0.001,3875.1,3874.6,4.778]
[1758844003147,2.58064516,3875.0,3874.6,5.1557]
[1758844003443,2.58071176,3874.9,3874.6,4.9068]
[1758844003604,2.58071176,3874.9,3874.6,5.1557]
[1758844004526,2.58078707,3874.8,3874.6,5.1557]
[1758844004844,2.58084496,3874.7,3874.6,5.1557]
[1758844005345,2.58084496,3874.7,3874.6,4.9068]
[1758844005646,0.001,3875.1,3874.6,5.1557]
[1758844006043,2.58073091,3874.9,3874.6,5.1557]
[1758844006251,2.5808387,3874.8,3874.7,1.55]
[1758844007455,2.58066766,3875.0,3874.7,1.55]
[1758844007616,0.001,3875.1,3874.7,1.55]
[1758844007805,0.001,3875.1,3874.1,0.00200001]
[1758844007806,2.58117804,3874.2,3874.1,0.00200001]
[1758844008135,3.30067804,3874.2,3874.1,0.00200001]
[1758844008535,6.30067804,3874.2,3874.1,0.00200001]
[1758844008755,7.09267804,3874.2,3874.1,0.00200001]
[1758844009069,3.37344457,3873.8,3873.7,1e-08]
[1758844009218,7.64812682,3873.8,3873.7,1e-08]
[1758844009408,8.36762682,3873.8,3873.7,1e-08]
[1758844009803,8.47111502,3873.8,3873.7,1e-08]
[1758844010007,5.47111502,3873.8,3873.7,1e-08]
[1758844010429,10.24011502,3873.8,3873.7,1e-08]
[1758844011914,10.24011502,3873.8,3873.1,0.02]
[1758844011915,2.58171115,3873.4,3873.1,0.02]
[1758844012112,7.34971115,3873.4,3873.1,0.02]
[1758844012349,8.06921115,3873.4,3873.1,0.02]
[1758844012712,11.06921115,3873.4,3873.1,0.02]
[1758844013142,6.30121115,3873.4,3873.1,0.02]
[1758844013462,7.76859491,3873.4,3873.1,0.02]
[1758844014341,5.58171115,3873.4,3873.1,0.02]
[1758844014935,3.0,3873.4,3873.1,0.02]
[1758844015353,0.4713,3874.2,3873.3,0.2375]
[1758844015568,3.0,3874.2,3873.3,0.2375]
[1758844015842,2.58171115,3873.4,3873.3,0.002]
[1758844017140,3.30121115,3873.4,3873.3,0.002]
[1758844018060,2.58171115,3873.4,3873.3,0.002]
[1758844019438,2.58171115,3873.4,3873.3,0.2375]
[1758844019676,3.11092052,3873.4,3873.3,0.002]
[1758844020277,0.1288,3873.5,3873.3,0.2375]
[1758844020477,0.2355,3874.1,3873.4,7.3819]
[1758844020643,0.2355,3874.1,3873.5,0.3643]
[1758844020843,2.58124467,3874.1,3873.6,0.7054]
[1758844021149,2.58144457,3873.8,3873.7,0.2355]
[1758844021348,2.58144457,3873.8,3873.3,0.002]
[1758844021349,2.58171115,3873.4,3873.3,0.002]
[1758844022143,5.58171115,3873.4,3872.2,0.2355]
[1758844022342,5.58171115,3873.4,3872.0,2.15]
[1758844022343,5.58197779,3873.0,3872.0,2.15]
[1758844022543,6.37397779,3873.0,3872.0,2.15]
[1758844022745,7.09347779,3873.0,3872.0,2.15]
[1758844022949,12.05726414,3873.0,3872.0,2.15]
[1758844023152,12.05726414,3873.0,3872.1,0.2555]
[1758844023153,7.52036414,3873.0,3872.1,0.2555]
[1758844023364,7.76856414,3873.0,3872.1,0.2555]
[1758844023684,8.56056414,3873.0,3872.1,0.02]
[1758844027176,13.31856414,3873.0,3872.2,0.2311]
[1758844027353,7.04906414,3873.0,3872.2,0.2311]
[1758844027557,4.04906414,3873.0,3872.4,0.2311]
[1758844027770,4.74096414,3873.0,3872.4,0.2311]
[1758844027973,4.74096414,3873.0,3872.5,0.002]
[1758844028175,8.53296414,3873.0,3872.5,0.002]
[1758844028791,11.80506414,3873.0,3872.5,0.002]
[1758844028955,7.04906414,3873.0,3872.5,0.002]
[1758844029160,2.58197779,3873.0,3872.6,0.2311]
[1758844029377,5.58197779,3873.0,3872.6,0.2311]
[1758844029557,3.0,3873.0,3872.6,0.2311]
[1758844029888,5.58197779,3873.0,3872.6,0.2311]
[1758844030091,5.58197779,3873.0,3872.5,0.002]
[1758844030092,0.2292,3874.6,3872.9,5.4568]
[1758844030292,0.4637,3874.7,3873.0,0.6998]
[1758844030293,2.5810448,3874.4,3873.0,0.6998]
[1758844030497,2.58191113,3873.1,3873.0,0.2311]
[1758844030788,2.58177781,3873.3,3873.0,0.6998]
[1758844030988,2.58171611,3873.4,3873.1,0.6998]
[1758844031187,2.58183792,3873.3,3873.1,0.6998]
[1758844031394,2.58184446,3873.2,3873.1,0.5975]
[1758844031759,2.58158921,3873.6,3873.1,0.5975]
[1758844031961,2.5816445,3873.5,3873.2,0.2311]
[1758844032183,2.58171115,3873.4,3873.3,0.2311]
[1758844032593,2.58164517,3873.5,3873.3,0.2311]
[1758844032791,0.1288,3873.7,3873.4,0.2311]
[1758844032972,2.5816445,3873.5,3873.4,0.2311]
[1758844033173,2.58177781,3873.3,3873.2,0.4687]
[1758844033896,2.58184446,3873.2,3873.1,0.1288]
[1758844034101,2.58197779,3873.0,3872.9,0.002]
[1758844034587,3.27387779,3873.0,3872.9,0.002]
[1758844034791,6.27387779,3873.0,3872.9,0.002]
[1758844036021,7.06587779,3873.0,3872.9,0.002]
[1758844036708,7.06587779,3873.0,3872.5,1e-08]
[1758844036709,2.58224448,3872.6,3872.5,1e-08]
[1758844036890,2.58224448,3872.6,3872.1,0.022]
[1758844036891,3.37451123,3872.2,3872.1,1e-08]
[1758844037096,11.12351123,3872.2,3872.1,1e-08]
[1758844037285,11.81541123,3872.2,3872.1,1e-08]
[1758844037914,7.06641123,3872.2,3872.1,1e-08]
[1758844038217,14.93029413,3872.2,3872.1,1e-08]
[1758844040191,2.58317834,3871.2,3871.1,1e-08]
[1758844040392,6.37517834,3871.2,3871.1,1e-08]
[1758844040606,7.06807834,3871.2,3871.1,1e-08]
[1758844040809,8.72309435,3871.2,3871.1,1e-08]
[1758844041795,2.58417965,3869.7,3869.6,0.2306]
[1758844042411,2.58438,3869.4,3869.3,0.4464]
[1758844042722,2.58438,3869.4,3869.3,0.2306]
[1758844042887,0.792,3870.5,3869.3,0.677]
[1758844043226,2.58431321,3869.5,3869.4,0.2306]
[1758844043716,7.746,3870.1,3869.4,0.677]
[1758844043921,2.58431321,3869.5,3869.4,0.677]
[1758844044288,2.58424934,3869.6,3869.4,0.677]
[1758844044506,2.58424557,3869.7,3869.5,0.677]
[1758844044789,3.0,3870.3,3869.6,0.677]
[1758844045014,2.58411287,3869.8,3869.7,0.2306]
[1758844045316,3.0,3870.3,3869.7,0.2306]
[1758844045726,2.58304489,3871.4,3869.8,0.02584112]
[1758844045924,2.58304489,3871.4,3869.9,0.32870844]
[1758844045925,4.704,3871.3,3869.9,0.32870844]
[1758844046088,2.58377788,3870.4,3870.0,0.677]
[1758844046289,4.704,3871.3,3869.9,0.32870844]
[1758844046290,2.58378351,3870.3,3870.1,0.677]
[1758844046645,2.58378351,3870.3,3870.2,0.2306]
[1758844046823,2.58377903,3870.3,3870.2,0.2306]
[1758844047003,2.58357877,3870.6,3869.7,0.2306]
[1758844047202,2.58411287,3869.8,3869.7,0.2306]
[1758844047812,2.58387503,3870.2,3869.7,0.2306]
[1758844048023,2.58397615,3870.1,3869.7,0.2306]
[1758844048229,2.5840064,3870.0,3869.8,0.4464]
[1758844048537,5.58356884,3870.7,3869.3,3.748]
[1758844048538,0.792,3870.7,3869.3,0.002]
[1758844048833,2.58438,3869.4,3869.3,0.002]
[1758844049622,4.742,3870.0,3869.3,0.2326]
[1758844049927,2.58438,3869.4,3869.3,0.2326]
[1758844050104,2.58438,3869.4,3869.3,0.002]
[1758844051036,2.58438,3869.4,3869.3,0.2326]
[1758844051236,2.58438,3869.4,3869.3,0.002]
[1758844053041,0.84349,3870.0,3869.3,0.679]
[1758844053208,0.84349,3870.0,3869.4,0.2306]
[1758844053404,2.58410552,3869.9,3869.4,0.2306]
[1758844053641,2.58438,3869.4,3869.3,0.002]
[1758844056139,2.58425713,3869.6,3869.3,0.2326]
[1758844056344,2.58438,3869.4,3869.3,0.679]
[1758844057122,2.58438,3869.4,3869.3,0.2326]
[1758844057314,2.58438,3869.4,3869.3,0.002]
[1758844058348,0.1288,3869.5,3869.3,0.002]
[1758844058569,0.1288,3870.3,3869.4,3.705]
[1758844058850,2.58404244,3870.0,3869.7,0.1288]
[1758844059152,2.58410121,3869.9,3869.8,0.2306]
[1758844059351,2.58410121,3869.9,3869.7,0.1288]
[1758844059526,2.58404242,3870.0,3869.7,0.5752]
[1758844059908,0.1288,3870.3,3869.8,0.677]
[1758844060155,2.58403931,3870.0,3869.8,0.677]
[1758844060317,2.58403931,3870.0,3869.9,0.2306]
[1758844060724,0.1288,3870.3,3869.9,0.2306]
[1758844060924,0.1288,3870.3,3870.0,0.677]
[1758844061143,0.1288,3870.8,3870.2,0.1288]
[1758844061360,0.1288,3870.8,3870.3,0.2306]
[1758844061559,0.1288,3870.8,3870.4,0.677]
[1758844061770,0.1288,3870.8,3870.5,0.677]
[1758844062057,0.1288,3871.2,3870.6,0.677]
[1758844062258,0.2476,3871.9,3870.7,0.2306]
[1758844062460,2.58324123,3871.2,3870.9,0.1288]
[1758844062662,3.0,3871.4,3871.0,0.677]
[1758844062867,2.58317883,3871.2,3871.1,0.2306]
[1758844063742,0.1288,3871.5,3871.1,0.2306]
[1758844063940,2.58317834,3871.2,3871.1,0.2306]
[1758844064326,0.1288,3871.5,3871.1,0.2306]
[1758844064558,0.1288,3871.5,3870.9,0.1288]
[1758844064559,2.58327871,3871.1,3870.9,0.1288]
[1758844064860,2.5833118,3871.0,3870.9,0.1288]
[1758844065065,0.1288,3871.5,3870.9,0.1288]
[1758844065244,2.58321025,3871.2,3870.9,0.1288]
[1758844065446,0.1288,3871.5,3871.0,0.2306]
[1758844065633,2.58324507,3871.1,3871.0,0.2306]
[1758844066165,0.1288,3871.5,3871.0,0.2306]
[1758844066361,2.58321405,3871.2,3871.1,0.2306]
[1758844067164,2.58317111,3871.3,3870.9,0.1288]
[1758844067332,2.58317111,3871.3,3871.0,0.2306]
[1758844067538,2.58317111,3871.3,3871.1,0.2306]
[1758844067933,2.58317834,3871.2,3871.1,0.2306]
[1758844068468,2.71180119,3871.5,3871.1,0.2306]
[1758844068670,2.58317834,3871.2,3871.1,0.2306]
[1758844069069,0.1288,3871.5,3870.9,0.1288]
[1758844069275,2.58304489,3871.4,3870.9,0.1288]
[1758844069570,0.1288,3871.5,3871.0,0.2463]
[1758844069737,2.58290798,3871.7,3871.2,0.1288]
[1758844069942,3.0,3871.8,3871.2,0.15463178]
[1758844070140,0.1488,3871.9,3871.2,0.1288]
[1758844070641,3.0,3871.8,3871.3,0.2463]
[1758844070849,0.1488,3871.9,3871.4,0.4679]
[1758844071083,0.1488,3871.9,3871.4,0.2463]
[1758844071084,2.58297817,3871.5,3871.4,0.2463]
[1758844071256,0.1488,3871.9,3871.3,0.2463]
[1758844071462,2.58304489,3871.4,3871.3,0.2463]
[1758844072864,2.58304489,3871.4,3871.2,0.1288]
[1758844072865,2.58311161,3871.3,3871.2,0.1288]
[1758844073268,2.5827894,3871.8,3871.1,0.1288]
[1758844073269,0.2277,3871.7,3871.1,0.1288]
[1758844073445,2.5833118,3871.0,3868.9,0.7969]
[1758844073650,0.1288,3870.6,3869.6,0.1288]
[1758844073976,2.58417965,3869.7,3869.6,0.1288]
[1758844074280,2.58410393,3869.9,3869.6,0.1288]
[1758844074592,0.3565,3870.3,3869.6,0.1288]
[1758844074796,0.2277,3870.9,3869.7,0.02584179]
[1758844074947,2.58397706,3870.1,3869.8,0.1288]
[1758844075147,0.3565,3870.7,3869.8,0.1288]
[1758844075347,2.58398639,3870.0,3869.8,0.1288]
[1758844075650,0.3565,3870.7,3869.8,0.1288]
[1758844075870,2.58404609,3869.9,3869.8,0.1288]
[1758844076744,2.58404609,3869.9,3869.3,0.002]
[1758844076745,2.58432209,3869.5,3869.3,0.002]
[1758844077202,2.58432209,3869.5,3869.4,0.1288]
[1758844077345,0.1288,3870.1,3869.4,0.843]
[1758844077881,0.1288,3870.1,3869.6,0.1288]
[1758844078084,2.58403434,3870.0,3869.6,0.843]
[1758844078290,2.58407495,3869.9,3869.6,0.843]
[1758844078588,0.1288,3870.4,3869.6,0.1288]
[1758844078756,2.58410854,3869.9,3869.6,0.1288]
[1758844079088,0.1288,3870.4,3869.6,0.843]
[1758844079283,2.58403928,3870.0,3869.6,0.843]
[1758844079586,0.2277,3870.9,3869.7,2.89204179]
[1758844079785,0.1288,3870.8,3869.9,0.1288]
[1758844079985,0.1288,3870.8,3870.2,0.1288]
[1758844080302,2.58371227,3870.4,3870.3,0.2463]
[1758844080506,2.58325174,3871.1,3870.3,0.74003779]
[1758844080702,0.2277,3871.5,3870.4,0.02583712]
[1758844080703,2.5834693,3870.8,3870.4,0.02583712]
[1758844080907,0.6969,3870.7,3870.2,4.718]
[1758844081386,0.2277,3870.7,3870.2,4.718]
[1758844082167,2.58345234,3870.8,3870.2,4.718]
[1758844082374,2.58338817,3870.9,3870.2,4.718]
[1758844082572,0.001,3871.5,3870.5,4.13663531]
[1758844082770,0.001,3871.5,3870.2,1.553]
[1758844082771,0.6969,3871.4,3870.2,1.553]
[1758844083083,2.58350036,3870.8,3870.3,6.869]
[1758844083603,2.58354378,3870.7,3870.3,6.869]
[1758844083776,2.58331609,3871.0,3870.3,6.869]
[1758844084122,2.58357442,3870.7,3870.2,1.553]
[1758844084411,2.58380187,3870.3,3869.8,4.715]
[1758844084714,0.2471,3870.3,3869.3,0.248]
[1758844084888,3.28636345,3870.2,3869.4,2.826]
[1758844085222,2.83068121,3870.6,3869.4,5.96576146]
[1758844085378,0.2471,3871.0,3869.6,4.13723076]
[1758844085715,5.58344875,3870.8,3869.9,1.553]
[1758844085921,2.58351897,3870.7,3870.0,5.4014]
[1758844086072,3.2471,3870.9,3870.1,2.152]
[1758844086275,2.58359004,3870.6,3870.2,1.553]
[1758844086616,0.61735,3870.9,3870.2,1.553]
[1758844086776,2.58344528,3870.8,3870.2,1.553]
[1758844086976,2.58353296,3870.7,3870.2,1.553]
[1758844087512,5.8304817,3870.9,3870.2,1.553]
[1758844087694,0.2471,3870.9,3870.2,1.553]
[1758844087878,2.58398792,3870.0,3869.7,2.152]
[1758844088078,3.10076462,3870.0,3869.8,6.265]
[1758844088280,2.58398792,3870.0,3869.8,6.265]
[1758844088805,2.58404609,3869.9,3869.8,6.265]
[1758844089305,0.4554,3869.9,3869.3,0.248]
[1758844089508,2.58438,3869.4,3869.3,0.002]
[1758844089886,2.58434093,3869.5,3869.3,0.002]
[1758844090299,2.58425561,3869.6,3869.3,0.002]
[1758844090806,0.1288,3869.8,3869.5,1.553]
[1758844091109,2.58411287,3869.8,3869.7,1.553]
[1758844091295,3.28663653,3869.8,3869.7,4.71]
[1758844091889,2.58411287,3869.8,3869.7,4.71]
[1758844092286,0.2471,3870.7,3869.7,4.71]
[1758844092602,2.58394611,3870.1,3869.7,4.8388]
[1758844092805,0.1288,3870.3,3869.7,4.8388]
[1758844093200,0.2471,3871.1,3869.7,8.84712094]
[1758844093510,0.1288,3870.9,3870.2,0.1288]
[1758844093709,0.1288,3870.9,3870.3,4.709]
[1758844093911,2.58364856,3870.5,3870.3,4.709]
[1758844094122,3.1288,3870.9,3870.3,4.709]
[1758844094288,2.58344528,3870.8,3870.3,4.709]
[1758844094483,2.58366698,3870.5,3870.3,4.709]
[1758844094791,0.1288,3870.9,3870.3,4.709]
[1758844094987,0.1288,3870.9,3870.2,0.1288]
[1758844095216,2.58354543,3870.7,3870.3,4.707]
[1758844095411,2.58369275,3870.5,3870.3,4.707]
[1758844095618,2.58371227,3870.4,3870.3,4.707]
[1758844095982,2.58371227,3870.4,3870.2,0.1288]
[1758844095983,2.58377903,3870.3,3870.2,4.8358]
[1758844096528,2.58372434,3870.4,3870.2,4.8358]
[1758844096728,0.1288,3870.9,3870.2,4.8358]
[1758844096926,2.71217993,3870.9,3870.2,4.8358]
[1758844097238,0.1288,3870.9,3870.2,6.3888]
[1758844097521,0.2471,3871.1,3870.2,4.707]
[1758844097685,2.5833118,3871.0,3870.2,4.707]
[1758844097888,2.5835189,3870.7,3870.2,4.707]
[1758844098116,2.58341355,3870.9,3870.2,4.707]
[1758844098331,0.2471,3871.1,3870.2,4.707]
[1758844099021,2.5833118,3871.0,3870.2,4.707]
[1758844099195,0.2471,3871.1,3870.2,4.707]
[1758844099535,2.58352006,3870.7,3870.2,4.707]
[1758844099726,0.2471,3871.1,3870.2,4.707]
[1758844099907,0.001,3871.5,3870.3,0.6945]
[1758844099908,3.0,3871.3,3870.3,0.6945]
[1758844100093,0.3001,3871.2,3870.3,0.6965]
[1758844100291,0.001,3870.6,3870.3,0.6965]
[1758844100493,0.001,3870.6,3870.4,0.6945]
[1758844101210,0.001,3870.6,3870.5,1.553]
[1758844101413,0.001,3870.6,3870.5,1.803]
[1758844101710,0.001,3870.6,3870.5,2.2475]
[1758844102816,0.001,3870.6,3870.5,1.803]
[1758844103394,0.001,3870.6,3870.3,1.555]
[1758844103594,0.001,3870.6,3870.3,1.805]
[1758844103795,0.001,3870.6,3870.5,1.553]
[1758844104320,0.001,3870.6,3870.5,1.803]
[1758844104487,0.001,3870.6,3870.5,4.83114552]
[1758844104817,0.001,3870.6,3870.5,8.62314552]
[1758844106419,0.001,3870.6,3870.5,13.32114552]
[1758844106617,0.001,3870.6,3870.5,21.39114552]
[1758844107135,0.001,3871.5,3871.3,2.345]
[1758844107303,0.001,3871.5,3871.4,21.63184489]
[1758844107829,0.001,3871.5,3871.4,22.32634489]
[1758844108038,0.001,3871.5,3871.4,22.45524958]
[1758844108332,0.001,3871.5,3871.4,13.44744958]
[1758844108531,0.001,3871.5,3871.4,22.32444958]
[1758844109229,0.001,3871.5,3871.4,8.75144958]
[1758844109437,0.001,3871.5,3871.4,22.32244958]
[1758844112537,1e-08,3871.9,3871.8,2.58277803]
[1758844112706,1e-08,3871.9,3871.8,12.62077803]
[1758844112906,1e-08,3871.9,3871.8,13.31527803]
[1758844116550,1e-08,3871.9,3871.8,16.00877803]
[1758844116748,1e-08,3871.9,3871.8,20.69877803]
[1758844116942,1e-08,3871.9,3871.8,21.49077803]
[1758844118256,1e-08,3871.9,3871.8,2.58277803]
[1758844118425,0.70460001,3871.9,3871.8,9.54957803]
[1758844118964,1e-08,3871.9,3871.8,12.54957803]
[1758844119164,1e-08,3871.9,3871.8,13.97377803]
[1758844119458,1e-08,3871.9,3871.8,12.183]
[1758844119655,1e-08,3871.9,3871.8,14.76577803]
[1758844123342,1e-08,3871.9,3871.8,15.46027803]
[1758844124361,1e-08,3871.9,3871.8,14.76577803]
[1758844124672,1e-08,3871.9,3871.8,7.92777803]
[1758844124872,1e-08,3871.9,3871.8,21.48077803]
[1758844125055,0.24440001,3871.9,3871.8,21.48077803]
[1758844125608,0.70460001,3871.9,3871.8,21.48077803]
[1758844126182,0.70460001,3871.9,3871.8,3.0]
[1758844126480,0.70460001,3871.9,3871.8,11.384]
[1758844126642,0.70460001,3871.9,3871.8,11.383]
[1758844127054,0.70460001,3871.9,3871.8,13.96577803]
[1758844127280,1e-08,3871.9,3871.8,13.96577803]
[1758844129149,1e-08,3871.9,3871.8,9.41457803]
[1758844129406,1e-08,3871.9,3871.8,11.5108]
[1758844129604,0.24340001,3871.9,3871.8,14.09357803]
[1758844130718,0.24340001,3871.9,3871.8,18.66457803]
[1758844130885,1e-08,3871.9,3871.8,20.81457803]
[1758844132214,1e-08,3871.9,3871.8,20.81157803]
[1758844133126,0.24340001,3871.9,3871.8,20.81157803]
[1758844134125,1e-08,3871.9,3871.8,20.81157803]
[1758844134309,1e-08,3871.9,3871.8,20.68277803]
[1758844135022,1e-08,3871.9,3871.8,20.91037803]
[1758844135185,1e-08,3871.9,3871.8,22.16047803]
[1758844137363,1e-08,3871.9,3871.8,8.61347803]
[1758844137663,1e-08,3871.9,3871.8,21.47277803]
[1758844138128,1e-08,3871.9,3871.8,7.92977803]
[1758844138450,1e-08,3871.9,3871.8,21.47277803]
[1758844138738,1e-08,3871.9,3871.8,22.15847803]
[1758844138901,1e-08,3871.9,3871.8,21.70037803]
[1758844139506,1e-08,3871.9,3871.8,22.15847803]
[1758844140316,0.001,3872.3,3872.2,7.92751123]
[1758844140520,0.001,3872.3,3872.2,12.59751123]
[1758844140710,0.001,3873.0,3872.9,4.92704446]
[1758844140910,0.001,3873.0,3872.9,14.74704446]
[1758844144224,0.001,3873.0,3872.9,14.87584446]
[1758844146431,0.001,3873.0,3872.9,15.82012846]
[1758844146630,0.001,3873.0,3872.9,16.05592846]
[1758844148316,0.001,3873.0,3872.9,8.56852846]
[1758844148549,0.2306,3873.0,3872.9,13.23152846]
[1758844148716,0.2306,3873.0,3872.9,22.10152846]
[1758844149319,0.2306,3873.0,3872.9,7.77652846]
[1758844149518,0.2306,3873.0,3872.9,21.30752846]
[1758844149519,0.001,3873.0,3872.9,21.30752846]
[1758844149751,0.7043,3873.0,3872.9,21.30752846]
[1758844150728,0.7043,3873.0,3872.9,18.725484]
[1758844150965,0.7043,3873.0,3872.9,5.194484]
[1758844151262,0.7043,3873.0,3872.9,15.25172846]
[1758844151263,0.001,3873.0,3872.9,15.25172846]
[1758844152744,0.001,3873.0,3872.9,15.91912846]
[1758844154080,0.001,3873.0,3872.9,6.093484]
[1758844154381,0.7043,3873.0,3872.9,17.886284]
[1758844154527,0.7043,3873.0,3872.9,4.358284]
[1758844154722,0.7043,3873.0,3872.9,11.166284]
[1758844155160,0.7043,3873.0,3872.9,7.6536]
[1758844155331,0.7043,3873.0,3872.9,0.8456]
[1758844155531,0.7043,3873.0,3872.9,7.6536]
[1758844155933,3.61489903,3873.0,3872.9,7.6536]
[1758844156238,1.03292124,3873.0,3872.9,7.6536]
[1758844156561,0.7043,3873.0,3872.9,7.6536]
[1758844157256,3.28627779,3873.0,3872.9,7.6536]
[1758844157633,0.7043,3873.0,3872.9,7.6536]
[1758844159031,0.4747,3873.0,3872.9,7.6536]
[1758844160669,0.001,3873.0,3872.9,7.6536]
[1758844161139,0.001,3873.0,3872.9,7.8908]
[1758844161341,0.001,3873.0,3872.9,7.7824]
[1758844161553,0.001,3873.0,3872.9,10.36444446]
[1758844162070,0.001,3873.0,3872.9,14.73894446]
[1758844162273,0.001,3873.0,3872.9,10.08094446]
[1758844162441,0.001,3873.0,3872.9,14.25984446]
[1758844162637,0.001,3873.0,3872.9,14.73394446]
[1758844163227,0.001,3873.0,3872.9,5.15]
[1758844163228,0.4433,3873.0,3872.9,5.15]
[1758844163394,0.4433,3873.0,3872.9,2.15]
[1758844163555,0.4433,3873.0,3872.9,6.803]
[1758844164272,0.001,3873.0,3872.9,11.73004446]
[1758844164455,0.001,3873.0,3872.9,12.44134446]
[1758844164649,0.001,3873.0,3872.9,11.96724446]
[1758844170383,0.001,3873.0,3872.9,14.96724446]
[1758844170891,0.001,3873.4,3873.3,4.92677781]
[1758844171049,0.001,3873.4,3873.3,12.57377781]
[1758844171250,0.001,3873.4,3873.3,13.28507781]
[1758844172074,0.001,3873.4,3873.3,13.41387781]
[1758844173594,0.001,3873.4,3873.3,5.4738]
[1758844173890,0.4433,3873.4,3873.3,4.645]
[1758844174499,0.001,3873.4,3873.3,4.8822]
[1758844174764,0.001,3873.4,3873.3,4.645]
[1758844174959,0.001,3873.4,3873.3,7.22677781]
[1758844175782,0.001,3873.4,3873.3,12.80897781]
[1758844175970,0.001,3873.4,3873.3,13.28307781]
[1758844176784,0.001,3873.4,3873.3,12.80897781]
[1758844177292,0.001,3873.4,3873.3,13.28307781]
[1758844177667,0.001,3873.4,3873.3,17.57307781]
[1758844177866,0.001,3873.4,3873.3,17.09897781]
[1758844178067,0.001,3873.4,3873.3,12.45397781]
[1758844178366,0.001,3873.4,3873.3,25.96497781]
[1758844179181,1e-08,3873.9,3873.8,3.37344457]
[1758844179381,1e-08,3873.9,3873.8,12.90478903]
[1758844179713,1e-08,3873.9,3873.8,13.61608903]
[1758844180566,0.001,3874.7,3874.6,4.92591157]
[1758844180761,0.001,3874.7,3874.6,14.71591157]
[1758844180966,0.001,3874.7,3874.6,14.95311157]
[1758844181205,0.001,3874.7,3874.6,15.2191976]
[1758844181368,0.001,3874.7,3874.6,15.35094437]
[1758844182310,0.001,3874.7,3874.6,15.82504437]
[1758844182662,0.001,3875.5,3875.3,4.13344538]
[1758844182900,0.001,3875.5,3875.3,10.94724983]
[1758844183100,0.001,3875.5,3875.3,14.25878984]
[1758844183304,0.001,3875.5,3875.3,15.28798984]
[1758844183684,0.001,3875.5,3875.3,21.89558984]
[1758844184372,0.001,3875.5,3875.3,22.13278984]
[1758844184784,0.001,3875.5,3875.3,22.47808984]
[1758844184995,0.001,3875.5,3875.4,7.92537879]
[1758844185197,0.001,3875.5,3875.4,8.90276482]
[1758844185509,0.001,3875.5,3875.4,21.69446482]
[1758844185681,0.001,3875.5,3875.4,21.93166482]
[1758844186093,1e-08,3876.9,3875.6,0.792]
[1758844186294,1e-08,3876.9,3875.4,21.25538603]
[1758844186295,1e-08,3876.9,3876.8,7.92444696]
[1758844186631,1e-08,3876.9,3876.8,8.26179142]
[1758844186924,0.44230001,3876.9,3876.8,8.26179142]
[1758844187137,0.44230001,3876.9,3876.8,3.0]
[1758844187323,0.44330001,3876.9,3876.8,12.28244696]
[1758844188632,0.44330001,3876.9,3876.8,14.62744696]
[1758844188633,1e-08,3876.9,3876.8,14.62744696]
[1758844191290,0.45710001,3876.9,3876.8,5.57944696]
[1758844191610,0.45910001,3876.9,3876.8,6.779]
[1758844192488,0.00100001,3876.9,3876.8,9.35844696]
[1758844192889,0.00100001,3876.9,3876.8,10.15044696]
[1758844193120,0.001,3877.3,3877.2,2.57918085]
[1758844193330,0.001,3877.3,3877.2,10.20818085]
[1758844195333,0.001,3877.3,3877.2,5.57918085]
[1758844195644,0.4601,3877.3,3877.2,9.35418085]
[1758844196038,0.4601,3877.3,3877.2,6.775]
[1758844196209,0.4601,3877.3,3877.2,11.03598085]
[1758844196408,0.4601,3877.3,3877.2,10.90718085]
[1758844196815,0.4581,3877.3,3877.2,10.90718085]
[1758844197510,0.001,3877.3,3877.2,10.90718085]
[1758844198609,0.4581,3877.3,3877.2,10.90718085]
[1758844198800,0.4581,3877.3,3877.2,1.553]
[1758844198801,0.4601,3877.3,3877.2,1.553]
[1758844199005,0.4601,3877.3,3877.2,7.156]
[1758844200430,0.4601,3877.3,3877.1,3.701]
[1758844200632,0.30491125,3877.3,3877.2,4.624]
[1758844200834,2.58011433,3877.3,3877.2,4.624]
[1758844201226,3.03921433,3877.3,3877.2,4.624]
[1758844201424,0.4601,3877.3,3877.2,4.624]
[1758844201626,0.4581,3877.3,3877.2,4.6497918]
[1758844201829,0.4581,3877.3,3877.2,4.624]